[Event "Titled Tuesday Blitz December 13 Late 2022"]
[White "Pasti, Aron"]
[Black "Estrada Nieto, Julian"]
[WhiteFideId "785857"]
[BlackFideId "5101018"]
[WhiteElo "2250"]
[BlackElo "2195"]
[Result "0-1"]
[Round "06"]
[TimeControl "180+1"]
[Date "2022.12.14"]
[WhiteClock "0:00:04"]
[BlackClock "0:00:06"]

1. e4 {[%clk 0:03:00]}  e5 {[%clk 0:02:59]} 2. Nf3 {[%clk 0:03:00]}  Nc6 {[%clk 0:03:00]} 3. Bb5 {[%clk 0:03:01]}  a6 {[%clk 0:02:59]} 4. Ba4 {[%clk 0:03:01]}  Nf6 {[%clk 0:02:59]} 5. O-O {[%clk 0:02:57]}  Be7 {[%clk 0:02:59]} 6. Re1 {[%clk 0:02:55]}  b5 {[%clk 0:02:59]} 7. Bb3 {[%clk 0:02:56]}  d6 {[%clk 0:02:58]} 8. c3 {[%clk 0:02:55]}  O-O {[%clk 0:02:58]} 9. h3 {[%clk 0:02:56]}  Bb7 {[%clk 0:02:58]} 10. d4 {[%clk 0:02:55]}  Re8 {[%clk 0:02:58]} 11. Ng5 {[%clk 0:02:52]}  Rf8 {[%clk 0:02:58]} 12. Nf3 {[%clk 0:02:52]}  Re8 {[%clk 0:02:53]} 13. a4 {[%clk 0:02:32]}  Bf8 {[%clk 0:02:51]} 14. Na3 {[%clk 0:02:29]}  h6 {[%clk 0:02:26]} 15. d5 {[%clk 0:02:23]}  Nb8 {[%clk 0:02:14]} 16. Nc2 {[%clk 0:02:20]}  Nbd7 {[%clk 0:02:10]} 17. Nh4 {[%clk 0:02:14]}  Nc5 {[%clk 0:02:04]} 18. Ne3 {[%clk 0:02:01]}  Nxb3 {[%clk 0:01:56]} 19. Qxb3 {[%clk 0:02:00]}  Nxe4 {[%clk 0:01:56]} 20. g3 {[%clk 0:01:38]}  Nc5 {[%clk 0:01:50]} 21. Qc2 {[%clk 0:01:36]}  bxa4 {[%clk 0:01:49]} 22. Nhf5 {[%clk 0:01:19]}  Qd7 {[%clk 0:01:40]} 23. Ng4 {[%clk 0:01:00]}  e4 {[%clk 0:01:01]} 24. Nfxh6+ {[%clk 0:00:34]}  Kh8 {[%clk 0:00:46]} 25. Be3 {[%clk 0:00:24]}  gxh6 {[%clk 0:00:37]} 26. Bd4+ {[%clk 0:00:24]}  Bg7 {[%clk 0:00:36]} 27. Qd2 {[%clk 0:00:22]}  Re5 {[%clk 0:00:13]} 28. Nxe5 {[%clk 0:00:16]}  dxe5 {[%clk 0:00:11]} 29. Bxc5 {[%clk 0:00:15]}  Qxh3 {[%clk 0:00:11]} 30. c4 {[%clk 0:00:13]}  Rd8 {[%clk 0:00:09]} 31. Rxa4 {[%clk 0:00:12]}  f5 {[%clk 0:00:08]} 32. Rb4 {[%clk 0:00:12]}  Bc8 {[%clk 0:00:08]} 33. Rb8 {[%clk 0:00:10]}  Rg8 {[%clk 0:00:08]} 34. Be7 {[%clk 0:00:09]}  f4 {[%clk 0:00:08]} 35. Bh4 {[%clk 0:00:04]}  f3 {[%clk 0:00:06]} 0-1


[Site "https://www.chess.com"]

[Event "Titled Tuesday Blitz December 13 Late 2022"]
[White "Rangel, Daniel"]
[Black "Curtis, John"]
[WhiteFideId "2124475"]
[BlackFideId "3200256"]
[WhiteElo "2225"]
[BlackElo "2203"]
[Result "1-0"]
[Round "06"]
[TimeControl "180+1"]
[Date "2022.12.14"]
[WhiteClock "0:00:04"]
[BlackClock "0:00:08"]

1. d4 {[%clk 0:02:56]}  Nf6 {[%clk 0:02:58]} 2. c4 {[%clk 0:02:54]}  c5 {[%clk 0:02:58]} 3. d5 {[%clk 0:02:47]}  d6 {[%clk 0:02:56]} 4. g3 {[%clk 0:02:47]}  g6 {[%clk 0:02:56]} 5. Bg2 {[%clk 0:02:41]}  Bg7 {[%clk 0:02:57]} 6. Nf3 {[%clk 0:02:42]}  O-O {[%clk 0:02:57]} 7. O-O {[%clk 0:02:43]}  e6 {[%clk 0:02:57]} 8. Nc3 {[%clk 0:02:43]}  exd5 {[%clk 0:02:57]} 9. cxd5 {[%clk 0:02:44]}  Re8 {[%clk 0:02:56]} 10. Nd2 {[%clk 0:02:43]}  Bf5 {[%clk 0:02:31]} 11. e4 {[%clk 0:02:24]}  Bg4 {[%clk 0:02:29]} 12. Qc2 {[%clk 0:02:19]}  Na6 {[%clk 0:02:17]} 13. a3 {[%clk 0:02:14]}  Nc7 {[%clk 0:02:10]} 14. a4 {[%clk 0:02:11]}  Qc8 {[%clk 0:02:02]} 15. Nc4 {[%clk 0:02:08]}  Bf8 {[%clk 0:01:54]} 16. Bg5 {[%clk 0:01:56]}  Qd8 {[%clk 0:01:39]} 17. h3 {[%clk 0:01:38]}  Bc8 {[%clk 0:01:37]} 18. f4 {[%clk 0:01:37]}  h6 {[%clk 0:01:35]} 19. Bh4 {[%clk 0:01:35]}  b6 {[%clk 0:01:26]} 20. e5 {[%clk 0:01:27]}  dxe5 {[%clk 0:01:20]} 21. fxe5 {[%clk 0:01:28]}  g5 {[%clk 0:01:20]} 22. Rxf6 {[%clk 0:01:13]}  gxh4 {[%clk 0:01:17]} 23. d6 {[%clk 0:01:12]}  Rxe5 {[%clk 0:01:08]} 24. Nxe5 {[%clk 0:00:44]}  Qxf6 {[%clk 0:01:04]} 25. dxc7 {[%clk 0:00:44]}  Qxe5 {[%clk 0:01:02]} 26. Bxa8 {[%clk 0:00:42]}  Bxh3 {[%clk 0:00:53]} 27. Bd5 {[%clk 0:00:20]}  Qxc7 {[%clk 0:00:44]} 28. Qg6+ {[%clk 0:00:16]}  Bg7 {[%clk 0:00:42]} 29. Re1 {[%clk 0:00:10]}  Qxg3+ {[%clk 0:00:34]} 30. Qxg3 {[%clk 0:00:09]}  hxg3 {[%clk 0:00:34]} 31. Re7 {[%clk 0:00:08]}  Bd4+ {[%clk 0:00:34]} 32. Kh1 {[%clk 0:00:07]}  Kf8 {[%clk 0:00:32]} 33. Rxa7 {[%clk 0:00:06]}  f5 {[%clk 0:00:31]} 34. Bf3 {[%clk 0:00:04]}  h5 {[%clk 0:00:29]} 35. Ne2 {[%clk 0:00:04]}  Bf2 {[%clk 0:00:28]} 36. Bxh5 {[%clk 0:00:01]}  c4 {[%clk 0:00:25]} 37. Nxg3 {[%clk 0:00:01]}  Bxg3 {[%clk 0:00:25]} 38. Bf3 {[%clk 0:00:02]}  Bf2 {[%clk 0:00:22]} 39. Ra8+ {[%clk 0:00:02]}  Ke7 {[%clk 0:00:21]} 40. Ra7+ {[%clk 0:00:03]}  Kd6 {[%clk 0:00:21]} 41. Rh7 {[%clk 0:00:04]}  Bf1 {[%clk 0:00:20]} 42. Rh6+ {[%clk 0:00:04]}  Ke5 {[%clk 0:00:20]} 43. Rh4 {[%clk 0:00:03]}  f4 {[%clk 0:00:19]} 44. Rh5+ {[%clk 0:00:03]}  Kd4 {[%clk 0:00:19]} 45. Rb5 {[%clk 0:00:03]}  Kd3 {[%clk 0:00:18]} 46. Bb7 {[%clk 0:00:04]}  Kc2 {[%clk 0:00:17]} 47. a5 {[%clk 0:00:03]}  f3 {[%clk 0:00:18]} 48. axb6 {[%clk 0:00:03]}  Bg2+ {[%clk 0:00:17]} 49. Kh2 {[%clk 0:00:02]}  Bd4 {[%clk 0:00:14]} 50. Bxf3 {[%clk 0:00:03]}  Bxf3 {[%clk 0:00:13]} 51. b7 {[%clk 0:00:04]}  Be5+ {[%clk 0:00:12]} 52. Kh3 {[%clk 0:00:03]}  Bb8 {[%clk 0:00:11]} 53. Kh4 {[%clk 0:00:03]}  Be4 {[%clk 0:00:11]} 54. Kg4 {[%clk 0:00:04]}  Bd3 {[%clk 0:00:11]} 55. Kf3 {[%clk 0:00:03]}  c3 {[%clk 0:00:11]} 56. bxc3 {[%clk 0:00:03]}  Kxc3 {[%clk 0:00:11]} 57. Rc5+ {[%clk 0:00:02]}  Bc4 {[%clk 0:00:11]} 58. Rc8 {[%clk 0:00:03]}  Ba7 {[%clk 0:00:11]} 59. b8=Q {[%clk 0:00:03]}  Bxb8 {[%clk 0:00:09]} 60. Rxb8 {[%clk 0:00:04]}  Kd4 {[%clk 0:00:10]} 61. Rh8 {[%clk 0:00:05]}  Bd5+ {[%clk 0:00:10]} 62. Kf4 {[%clk 0:00:06]}  Bc4 {[%clk 0:00:11]} 63. Rd8+ {[%clk 0:00:06]}  Kc5 {[%clk 0:00:11]} 64. Ke5 {[%clk 0:00:06]}  Kb4 {[%clk 0:00:11]} 65. Kd4 {[%clk 0:00:06]}  Bf7 {[%clk 0:00:10]} 66. Rb8+ {[%clk 0:00:06]}  Ka5 {[%clk 0:00:10]} 67. Kc5 {[%clk 0:00:06]}  Ka4 {[%clk 0:00:11]} 68. Rb4+ {[%clk 0:00:06]}  Ka3 {[%clk 0:00:10]} 69. Rb6 {[%clk 0:00:06]}  Ka4 {[%clk 0:00:10]} 70. Rb7 {[%clk 0:00:05]}  Bg8 {[%clk 0:00:10]} 71. Rb8 {[%clk 0:00:05]}  Bf7 {[%clk 0:00:10]} 72. Rb4+ {[%clk 0:00:05]}  Ka3 {[%clk 0:00:09]} 73. Rf4 {[%clk 0:00:05]}  Bg8 {[%clk 0:00:08]} 74. Kd4 {[%clk 0:00:04]}  Be6 {[%clk 0:00:08]} 75. Kc3 {[%clk 0:00:04]} 1-0


[Site "https://www.chess.com"]

[Event "Titled Tuesday Blitz December 13 Late 2022"]
[White "Remizov, Yaroslav"]
[Black "Kim, Sergey"]
[WhiteFideId "34134015"]
[BlackFideId "13700570"]
[WhiteElo "2415"]
[BlackElo "2626"]
[Result "1-0"]
[Round "06"]
[TimeControl "180+1"]
[Date "2022.12.13"]
[WhiteClock "0:00:42"]
[BlackClock "0:00:05"]

1. e4 {[%clk 0:03:00]}  e5 {[%clk 0:02:59]} 2. Nf3 {[%clk 0:03:01]}  Nc6 {[%clk 0:02:59]} 3. Nc3 {[%clk 0:03:02]}  Nf6 {[%clk 0:02:58]} 4. Be2 {[%clk 0:03:03]}  g6 {[%clk 0:02:58]} 5. d4 {[%clk 0:03:02]}  exd4 {[%clk 0:02:57]} 6. Nxd4 {[%clk 0:03:03]}  d6 {[%clk 0:02:57]} 7. Nxc6 {[%clk 0:03:04]}  bxc6 {[%clk 0:02:57]} 8. e5 {[%clk 0:03:04]}  Nd7 {[%clk 0:02:51]} 9. exd6 {[%clk 0:02:59]}  cxd6 {[%clk 0:02:51]} 10. O-O {[%clk 0:02:48]}  d5 {[%clk 0:02:44]} 11. Re1 {[%clk 0:02:42]}  Be7 {[%clk 0:02:41]} 12. Bh6 {[%clk 0:02:43]}  f6 {[%clk 0:02:38]} 13. Bf3 {[%clk 0:02:18]}  Ne5 {[%clk 0:02:23]} 14. Qe2 {[%clk 0:01:59]}  Kf7 {[%clk 0:02:07]} 15. Rad1 {[%clk 0:01:55]}  Nxf3+ {[%clk 0:01:36]} 16. Qxf3 {[%clk 0:01:54]}  Bf5 {[%clk 0:01:33]} 17. g4 {[%clk 0:01:28]}  Be6 {[%clk 0:01:31]} 18. Ne2 {[%clk 0:01:28]}  Qd7 {[%clk 0:01:29]} 19. h3 {[%clk 0:01:24]}  Bd6 {[%clk 0:01:19]} 20. c4 {[%clk 0:01:09]}  Rhe8 {[%clk 0:01:17]} 21. Nd4 {[%clk 0:01:06]}  Kg8 {[%clk 0:00:19]} 22. Nxe6 {[%clk 0:01:03]}  Rxe6 {[%clk 0:00:18]} 23. cxd5 {[%clk 0:01:03]}  cxd5 {[%clk 0:00:10]} 24. Kg2 {[%clk 0:00:43]}  Be5 {[%clk 0:00:09]} 25. Rxd5 {[%clk 0:00:42]}  Qb7 {[%clk 0:00:05]} 26. Rd8+ {[%clk 0:00:42]} 1-0


[Site "https://www.chess.com"]

[Event "Titled Tuesday Blitz December 13 Late 2022"]
[White "Reprintsev, Alexander"]
[Black "Andrews, Todd"]
[WhiteFideId "14100541"]
[BlackFideId "2012456"]
[WhiteElo "2230"]
[BlackElo "2361"]
[Result "0-1"]
[Round "06"]
[TimeControl "180+1"]
[Date "2022.12.14"]
[WhiteClock "0:00:04"]
[BlackClock "0:00:22"]

1. Nc3 {[%clk 0:03:00]}  d5 {[%clk 0:02:59]} 2. d4 {[%clk 0:03:00]}  Nf6 {[%clk 0:02:59]} 3. Bf4 {[%clk 0:03:00]}  a6 {[%clk 0:02:52]} 4. e3 {[%clk 0:02:59]}  g6 {[%clk 0:02:51]} 5. h3 {[%clk 0:02:46]}  Bg7 {[%clk 0:02:51]} 6. Nf3 {[%clk 0:02:46]}  O-O {[%clk 0:02:50]} 7. Bd3 {[%clk 0:02:46]}  Nbd7 {[%clk 0:02:48]} 8. O-O {[%clk 0:02:40]}  c5 {[%clk 0:02:49]} 9. Ne5 {[%clk 0:02:34]}  b6 {[%clk 0:02:39]} 10. a4 {[%clk 0:02:08]}  Bb7 {[%clk 0:02:36]} 11. a5 {[%clk 0:02:06]}  b5 {[%clk 0:02:36]} 12. dxc5 {[%clk 0:02:04]}  Nxc5 {[%clk 0:02:35]} 13. Ne2 {[%clk 0:02:00]}  Rc8 {[%clk 0:02:30]} 14. Nd4 {[%clk 0:02:00]}  Nfd7 {[%clk 0:02:22]} 15. Nxd7 {[%clk 0:01:48]}  Qxd7 {[%clk 0:02:22]} 16. Nf3 {[%clk 0:01:41]}  f6 {[%clk 0:02:06]} 17. Bg3 {[%clk 0:01:40]}  e5 {[%clk 0:02:04]} 18. Nd2 {[%clk 0:01:35]}  Kh8 {[%clk 0:01:59]} 19. Be2 {[%clk 0:01:28]}  f5 {[%clk 0:01:54]} 20. c3 {[%clk 0:01:12]}  Qe7 {[%clk 0:01:17]} 21. f3 {[%clk 0:01:10]}  d4 {[%clk 0:01:07]} 22. Bf2 {[%clk 0:00:45]}  d3 {[%clk 0:01:06]} 23. b4 {[%clk 0:00:39]}  dxe2 {[%clk 0:01:04]} 24. Qxe2 {[%clk 0:00:40]}  Ne6 {[%clk 0:01:03]} 25. c4 {[%clk 0:00:40]}  bxc4 {[%clk 0:00:59]} 26. Nxc4 {[%clk 0:00:39]}  Qxb4 {[%clk 0:00:56]} 27. Nb6 {[%clk 0:00:34]}  Rcd8 {[%clk 0:00:52]} 28. Rfb1 {[%clk 0:00:34]}  Qd2 {[%clk 0:00:48]} 29. Qxd2 {[%clk 0:00:33]}  Rxd2 {[%clk 0:00:48]} 30. Nc4 {[%clk 0:00:33]}  Rd7 {[%clk 0:00:46]} 31. Rb6 {[%clk 0:00:29]}  Nc5 {[%clk 0:00:46]} 32. Rab1 {[%clk 0:00:24]}  e4 {[%clk 0:00:45]} 33. f4 {[%clk 0:00:17]}  Bd5 {[%clk 0:00:44]} 34. Ne5 {[%clk 0:00:15]}  Rc7 {[%clk 0:00:39]} 35. Bg3 {[%clk 0:00:13]}  Nd3 {[%clk 0:00:37]} 36. Nxd3 {[%clk 0:00:11]}  exd3 {[%clk 0:00:37]} 37. Rd1 {[%clk 0:00:11]}  Be4 {[%clk 0:00:35]} 38. Rxa6 {[%clk 0:00:10]}  Rc2 {[%clk 0:00:35]} 39. Bf2 {[%clk 0:00:10]}  Rb8 {[%clk 0:00:30]} 40. Rb6 {[%clk 0:00:10]}  Rxb6 {[%clk 0:00:29]} 41. axb6 {[%clk 0:00:11]}  Rb2 {[%clk 0:00:30]} 42. Rc1 {[%clk 0:00:11]}  h5 {[%clk 0:00:28]} 43. Bh4 {[%clk 0:00:08]}  Rxb6 {[%clk 0:00:27]} 44. Rc8+ {[%clk 0:00:04]}  Kh7 {[%clk 0:00:27]} 45. g4 {[%clk 0:00:04]}  Rb1+ {[%clk 0:00:22]} 46. Kf2 {[%clk 0:00:04]}  d2 {[%clk 0:00:23]} 47. Rd8 {[%clk 0:00:04]}  d1=Q {[%clk 0:00:22]} 0-1


[Site "https://www.chess.com"]

[Event "Titled Tuesday Blitz December 13 Late 2022"]
[White "Samsonkin, Artiom"]
[Black "Svane, Rasmus"]
[WhiteFideId "13503111"]
[BlackFideId "4657101"]
[WhiteElo "2524"]
[BlackElo "2674"]
[Result "0-1"]
[Round "06"]
[TimeControl "180+1"]
[Date "2022.12.13"]
[WhiteClock "0:00:04"]
[BlackClock "0:00:56"]

1. e4 {[%clk 0:02:56]}  c6 {[%clk 0:02:59]} 2. d4 {[%clk 0:02:54]}  d5 {[%clk 0:03:00]} 3. e5 {[%clk 0:02:54]}  Bf5 {[%clk 0:03:00]} 4. h4 {[%clk 0:02:55]}  h5 {[%clk 0:03:00]} 5. Bd3 {[%clk 0:02:53]}  Bxd3 {[%clk 0:03:01]} 6. Qxd3 {[%clk 0:02:54]}  Qa5+ {[%clk 0:03:02]} 7. Nc3 {[%clk 0:02:53]}  e6 {[%clk 0:03:00]} 8. Bg5 {[%clk 0:02:52]}  c5 {[%clk 0:02:57]} 9. dxc5 {[%clk 0:02:47]}  Bxc5 {[%clk 0:02:50]} 10. Nf3 {[%clk 0:02:46]}  Nc6 {[%clk 0:02:06]} 11. O-O {[%clk 0:02:39]}  a6 {[%clk 0:01:51]} 12. a3 {[%clk 0:02:38]}  Qc7 {[%clk 0:01:51]} 13. Rad1 {[%clk 0:02:31]}  Nh6 {[%clk 0:01:46]} 14. Bf4 {[%clk 0:01:34]}  Ng4 {[%clk 0:01:43]} 15. Bg3 {[%clk 0:01:24]}  Rd8 {[%clk 0:01:26]} 16. Qe2 {[%clk 0:01:15]}  O-O {[%clk 0:01:24]} 17. Kh1 {[%clk 0:01:06]}  Ne7 {[%clk 0:01:21]} 18. Bf4 {[%clk 0:00:46]}  Nf5 {[%clk 0:01:19]} 19. Nh2 {[%clk 0:00:42]}  Nxh2 {[%clk 0:01:14]} 20. Kxh2 {[%clk 0:00:43]}  g6 {[%clk 0:01:08]} 21. g3 {[%clk 0:00:35]}  Rc8 {[%clk 0:01:08]} 22. Qd3 {[%clk 0:00:22]}  Bd4 {[%clk 0:00:58]} 23. Ne2 {[%clk 0:00:04]}  Bxb2 {[%clk 0:00:58]} 24. c4 {[%clk 0:00:03]}  Qxc4 {[%clk 0:00:58]} 25. Qf3 {[%clk 0:00:04]}  Qe4 {[%clk 0:00:56]} 0-1


[Site "https://www.chess.com"]

[Event "Titled Tuesday Blitz December 13 Late 2022"]
[White "Sarana, Alexey"]
[Black "Chigaev, Maksim"]
[WhiteFideId "24133795"]
[BlackFideId "4108116"]
[WhiteElo "2708"]
[BlackElo "2542"]
[Result "1-0"]
[Round "06"]
[TimeControl "180+1"]
[Date "2022.12.13"]
[WhiteClock "0:00:22"]
[BlackClock "0:00:01"]

1. d4 {[%clk 0:03:00]}  Nf6 {[%clk 0:03:00]} 2. c4 {[%clk 0:03:00]}  g6 {[%clk 0:03:01]} 3. Nc3 {[%clk 0:03:01]}  d5 {[%clk 0:03:01]} 4. Nf3 {[%clk 0:03:01]}  Bg7 {[%clk 0:03:01]} 5. h4 {[%clk 0:03:02]}  dxc4 {[%clk 0:02:53]} 6. e4 {[%clk 0:03:02]}  c5 {[%clk 0:02:52]} 7. d5 {[%clk 0:03:02]}  O-O {[%clk 0:02:51]} 8. h5 {[%clk 0:02:55]}  Nxh5 {[%clk 0:02:47]} 9. Bxc4 {[%clk 0:02:54]}  Bg4 {[%clk 0:02:47]} 10. Qc2 {[%clk 0:02:51]}  Nd7 {[%clk 0:02:40]} 11. Nh2 {[%clk 0:02:49]}  Ne5 {[%clk 0:02:35]} 12. Bf1 {[%clk 0:02:33]}  Bd7 {[%clk 0:02:21]} 13. Be2 {[%clk 0:02:33]}  c4 {[%clk 0:02:07]} 14. Be3 {[%clk 0:02:28]}  b5 {[%clk 0:02:01]} 15. a3 {[%clk 0:02:27]}  a5 {[%clk 0:02:00]} 16. O-O {[%clk 0:02:25]}  b4 {[%clk 0:01:55]} 17. axb4 {[%clk 0:02:26]}  axb4 {[%clk 0:01:56]} 18. Rxa8 {[%clk 0:02:24]}  Qxa8 {[%clk 0:01:57]} 19. Nd1 {[%clk 0:02:24]}  b3 {[%clk 0:01:46]} 20. Qd2 {[%clk 0:02:21]}  Nf6 {[%clk 0:01:46]} 21. Nc3 {[%clk 0:02:19]}  e6 {[%clk 0:01:06]} 22. Bd4 {[%clk 0:02:03]}  Nd3 {[%clk 0:00:48]} 23. Bxd3 {[%clk 0:01:48]}  cxd3 {[%clk 0:00:48]} 24. Qxd3 {[%clk 0:01:48]}  exd5 {[%clk 0:00:19]} 25. Bxf6 {[%clk 0:01:48]}  Bxf6 {[%clk 0:00:19]} 26. Nxd5 {[%clk 0:01:48]}  Bd8 {[%clk 0:00:19]} 27. Qxb3 {[%clk 0:01:45]}  Be6 {[%clk 0:00:19]} 28. Rd1 {[%clk 0:01:41]}  h5 {[%clk 0:00:17]} 29. Nf3 {[%clk 0:01:41]}  Re8 {[%clk 0:00:12]} 30. Nd4 {[%clk 0:01:30]}  Bg4 {[%clk 0:00:12]} 31. f3 {[%clk 0:01:28]}  Bd7 {[%clk 0:00:11]} 32. Nb6 {[%clk 0:01:21]}  Bxb6 {[%clk 0:00:10]} 33. Qxb6 {[%clk 0:01:22]}  Qa4 {[%clk 0:00:09]} 34. Rd2 {[%clk 0:01:18]}  Qa1+ {[%clk 0:00:09]} 35. Kf2 {[%clk 0:01:18]}  Qh1 {[%clk 0:00:10]} 36. Qf6 {[%clk 0:01:15]}  Qc1 {[%clk 0:00:10]} 37. Nb3 {[%clk 0:01:10]}  Qc4 {[%clk 0:00:06]} 38. Nd4 {[%clk 0:01:02]}  Qc5 {[%clk 0:00:04]} 39. Kg3 {[%clk 0:00:54]}  Qa7 {[%clk 0:00:02]} 40. Ne2 {[%clk 0:00:49]}  Qb8+ {[%clk 0:00:03]} 41. Nf4 {[%clk 0:00:43]}  Be6 {[%clk 0:00:03]} 42. Qg5 {[%clk 0:00:37]}  Kh7 {[%clk 0:00:03]} 43. Kh2 {[%clk 0:00:31]}  Qc7 {[%clk 0:00:02]} 44. e5 {[%clk 0:00:29]}  Bc8 {[%clk 0:00:03]} 45. Rd6 {[%clk 0:00:28]}  Be6 {[%clk 0:00:01]} 46. Qf6 {[%clk 0:00:22]}  Kg8 {[%clk 0:00:01]} 1-0


[Site "https://www.chess.com"]

[Event "Titled Tuesday Blitz December 13 Late 2022"]
[White "Souleidis, Georgios"]
[Black "Sukandar, Irine Kharisma"]
[WhiteFideId "4206827"]
[BlackFideId "7101937"]
[WhiteElo "2401"]
[BlackElo "2301"]
[Result "1-0"]
[Round "06"]
[TimeControl "180+1"]
[Date "2022.12.14"]
[WhiteClock "0:00:14"]
[BlackClock "0:00:16"]

1. e4 {[%clk 0:03:00]}  e5 {[%clk 0:02:54]} 2. Nc3 {[%clk 0:03:00]}  Nf6 {[%clk 0:02:52]} 3. d4 {[%clk 0:03:00]}  exd4 {[%clk 0:02:51]} 4. Qxd4 {[%clk 0:03:01]}  Nc6 {[%clk 0:02:52]} 5. Qd3 {[%clk 0:03:02]}  Bc5 {[%clk 0:02:51]} 6. Bf4 {[%clk 0:03:01]}  Ng4 {[%clk 0:02:46]} 7. Bg3 {[%clk 0:02:40]}  d6 {[%clk 0:02:42]} 8. h3 {[%clk 0:02:38]}  Nge5 {[%clk 0:02:41]} 9. Qd2 {[%clk 0:02:37]}  Be6 {[%clk 0:02:38]} 10. O-O-O {[%clk 0:02:30]}  Qd7 {[%clk 0:02:22]} 11. Nd5 {[%clk 0:02:13]}  Bxd5 {[%clk 0:02:00]} 12. exd5 {[%clk 0:02:11]}  Ne7 {[%clk 0:01:55]} 13. f4 {[%clk 0:01:42]}  N5g6 {[%clk 0:01:55]} 14. Nf3 {[%clk 0:01:41]}  O-O-O {[%clk 0:01:46]} 15. Bd3 {[%clk 0:01:34]}  Nxd5 {[%clk 0:01:38]} 16. Rhe1 {[%clk 0:01:17]}  Nb4 {[%clk 0:01:29]} 17. Bc4 {[%clk 0:01:01]}  Rhe8 {[%clk 0:01:20]} 18. a3 {[%clk 0:01:00]}  Nc6 {[%clk 0:01:16]} 19. Bb5 {[%clk 0:01:00]}  a6 {[%clk 0:01:15]} 20. Ba4 {[%clk 0:01:00]}  Rxe1 {[%clk 0:01:11]} 21. Rxe1 {[%clk 0:01:00]}  Re8 {[%clk 0:01:11]} 22. Kb1 {[%clk 0:00:57]}  Rxe1+ {[%clk 0:01:05]} 23. Qxe1 {[%clk 0:00:58]}  h6 {[%clk 0:00:59]} 24. Qe4 {[%clk 0:00:54]}  Nge7 {[%clk 0:00:58]} 25. Bh4 {[%clk 0:00:51]}  Nf5 {[%clk 0:00:50]} 26. Be1 {[%clk 0:00:36]}  d5 {[%clk 0:00:37]} 27. Qd3 {[%clk 0:00:37]}  Qe6 {[%clk 0:00:32]} 28. Bxc6 {[%clk 0:00:35]}  Qxc6 {[%clk 0:00:31]} 29. Qxf5+ {[%clk 0:00:35]}  Qe6 {[%clk 0:00:26]} 30. Qd3 {[%clk 0:00:23]}  Bd6 {[%clk 0:00:24]} 31. Bd2 {[%clk 0:00:22]}  c6 {[%clk 0:00:23]} 32. c3 {[%clk 0:00:22]}  g6 {[%clk 0:00:22]} 33. Kc2 {[%clk 0:00:23]}  h5 {[%clk 0:00:23]} 34. Nd4 {[%clk 0:00:23]}  Qf6 {[%clk 0:00:22]} 35. f5 {[%clk 0:00:23]}  g5 {[%clk 0:00:21]} 36. g4 {[%clk 0:00:20]}  hxg4 {[%clk 0:00:21]} 37. hxg4 {[%clk 0:00:21]}  Be5 {[%clk 0:00:20]} 38. Nf3 {[%clk 0:00:21]}  Bf4 {[%clk 0:00:20]} 39. Bxf4 {[%clk 0:00:19]}  gxf4 {[%clk 0:00:21]} 40. Qd4 {[%clk 0:00:19]}  Qe7 {[%clk 0:00:20]} 41. Qxf4 {[%clk 0:00:18]}  Qe2+ {[%clk 0:00:20]} 42. Nd2 {[%clk 0:00:19]}  c5 {[%clk 0:00:20]} 43. Qf3 {[%clk 0:00:15]}  Qh2 {[%clk 0:00:15]} 44. Qxd5 {[%clk 0:00:14]}  b6 {[%clk 0:00:16]} 45. Qc6+ {[%clk 0:00:14]} 1-0


[Site "https://www.chess.com"]

[Event "Titled Tuesday Blitz December 13 Late 2022"]
[White "Stanisz, Patryk"]
[Black "Kujawski, Adam"]
[WhiteFideId "1123106"]
[BlackFideId "1100920"]
[WhiteElo "2069"]
[BlackElo "2054"]
[Result "0-1"]
[Round "06"]
[TimeControl "180+1"]
[Date "2022.12.14"]
[WhiteClock "0:00:05"]
[BlackClock "0:00:03"]

1. d4 {[%clk 0:03:00]}  Nf6 {[%clk 0:02:59]} 2. c4 {[%clk 0:03:01]}  e6 {[%clk 0:02:59]} 3. Nc3 {[%clk 0:03:01]}  Bb4 {[%clk 0:03:00]} 4. e3 {[%clk 0:03:02]}  c5 {[%clk 0:02:59]} 5. Ne2 {[%clk 0:03:01]}  b6 {[%clk 0:02:58]} 6. a3 {[%clk 0:03:01]}  Ba5 {[%clk 0:02:58]} 7. Bd2 {[%clk 0:02:58]}  Bb7 {[%clk 0:02:56]} 8. Rb1 {[%clk 0:02:57]}  Na6 {[%clk 0:02:54]} 9. Nf4 {[%clk 0:02:25]}  O-O {[%clk 0:02:48]} 10. Bd3 {[%clk 0:02:18]}  Bxc3 {[%clk 0:02:24]} 11. Bxc3 {[%clk 0:02:19]}  Ne4 {[%clk 0:02:20]} 12. d5 {[%clk 0:01:49]}  Nxc3 {[%clk 0:02:17]} 13. bxc3 {[%clk 0:01:50]}  e5 {[%clk 0:02:14]} 14. Qh5 {[%clk 0:01:41]}  f5 {[%clk 0:01:44]} 15. Bxf5 {[%clk 0:01:03]}  Rxf5 {[%clk 0:01:43]} 16. Qxf5 {[%clk 0:01:04]}  exf4 {[%clk 0:01:43]} 17. Qxf4 {[%clk 0:01:04]}  d6 {[%clk 0:01:38]} 18. O-O {[%clk 0:01:00]}  Qe7 {[%clk 0:01:37]} 19. Rfe1 {[%clk 0:00:53]}  Rf8 {[%clk 0:01:36]} 20. Qg3 {[%clk 0:00:52]}  Nb8 {[%clk 0:01:35]} 21. e4 {[%clk 0:00:46]}  Ba6 {[%clk 0:01:29]} 22. e5 {[%clk 0:00:40]}  dxe5 {[%clk 0:01:22]} 23. Rxe5 {[%clk 0:00:39]}  Qf6 {[%clk 0:01:02]} 24. Re4 {[%clk 0:00:15]}  Nd7 {[%clk 0:00:38]} 25. Rbe1 {[%clk 0:00:14]}  h6 {[%clk 0:00:27]} 26. h3 {[%clk 0:00:14]}  Rf7 {[%clk 0:00:20]} 27. Re6 {[%clk 0:00:13]}  Qf5 {[%clk 0:00:19]} 28. Re8+ {[%clk 0:00:11]}  Kh7 {[%clk 0:00:18]} 29. R8e4 {[%clk 0:00:09]}  Nf8 {[%clk 0:00:11]} 30. Kh2 {[%clk 0:00:07]}  Ng6 {[%clk 0:00:11]} 31. f3 {[%clk 0:00:05]}  Bc8 {[%clk 0:00:09]} 32. Kg1 {[%clk 0:00:03]}  Nf4 {[%clk 0:00:09]} 33. Re8 {[%clk 0:00:01]}  Bd7 {[%clk 0:00:08]} 34. Qg4 {[%clk 0:00:02]}  Bxe8 {[%clk 0:00:07]} 35. Qxf5+ {[%clk 0:00:01]}  Rxf5 {[%clk 0:00:08]} 36. Rxe8 {[%clk 0:00:01]}  Nd3 {[%clk 0:00:08]} 37. Re7 {[%clk 0:00:02]}  Ne5 {[%clk 0:00:08]} 38. Rxa7 {[%clk 0:00:02]}  Nxc4 {[%clk 0:00:07]} 39. Rb7 {[%clk 0:00:02]}  Rxd5 {[%clk 0:00:07]} 40. a4 {[%clk 0:00:02]}  Rd3 {[%clk 0:00:07]} 41. Kf2 {[%clk 0:00:03]}  Rxc3 {[%clk 0:00:07]} 42. f4 {[%clk 0:00:03]}  Rc2+ {[%clk 0:00:07]} 43. Kf3 {[%clk 0:00:03]}  Kg6 {[%clk 0:00:05]} 44. g4 {[%clk 0:00:02]}  Kf6 {[%clk 0:00:05]} 45. Ke4 {[%clk 0:00:03]}  Rb2 {[%clk 0:00:04]} 46. Kd5 {[%clk 0:00:03]}  Ne3+ {[%clk 0:00:04]} 47. Kc6 {[%clk 0:00:04]}  c4 {[%clk 0:00:04]} 48. Rc7 {[%clk 0:00:03]}  c3 {[%clk 0:00:04]} 49. Kd6 {[%clk 0:00:03]}  c2 {[%clk 0:00:04]} 50. a5 {[%clk 0:00:03]}  bxa5 {[%clk 0:00:04]} 51. Rc6 {[%clk 0:00:03]}  Rb1 {[%clk 0:00:03]} 52. Kd7+ {[%clk 0:00:04]}  Kf7 {[%clk 0:00:03]} 53. Kd8 {[%clk 0:00:04]}  c1=Q {[%clk 0:00:04]} 54. Rb6 {[%clk 0:00:04]}  Rxb6 {[%clk 0:00:03]} 55. f5 {[%clk 0:00:04]}  Qc6 {[%clk 0:00:03]} 56. f6 {[%clk 0:00:05]}  Rb8# {[%clk 0:00:03]} 0-1


[Site "https://www.chess.com"]